bitfinex/quotes_ETHUSD_20220111
["timestamp","ask_amount","ask_price","bid_price","bid_amount"]
[1641906306412,0.464,3127.4,3126.9,1.30482093]
[1641906306413,1.26376,3127.4,3126.9,1.30482093]
[1641906306812,1.26376,3127.4,3127.0,0.00454739]
[1641906306813,0.464,3127.4,3127.0,0.00454739]
[1641906307412,5.6552,3127.7,3127.0,1.08924739]
[1641906307611,0.464,3127.8,3127.5,1.29256701]
[1641906308014,0.3433,3128.1,3127.6,0.00113685]
[1641906308414,0.00113685,3128.0,3127.6,0.00113685]
[1641906308614,0.00113685,3128.0,3127.7,0.019165]
[1641906309011,0.00113685,3128.0,3127.6,0.00113685]
[1641906309262,0.00113685,3128.0,3127.6,0.89048439]
[1641906309657,0.00113685,3128.0,3127.6,0.00113685]
[1641906310258,0.00113685,3128.0,3127.8,0.00832986]
[1641906311158,0.00113685,3128.0,3127.9,7.70727322]
[1641906311559,0.00113685,3128.0,3127.9,8.00727322]
[1641906311960,0.00113685,3128.0,3127.9,12.79877322]
[1641906312361,0.00113685,3128.0,3127.9,31.49877322]
[1641906313113,0.00113685,3128.0,3127.9,31.53210193]
[1641906313307,0.00113685,3128.0,3127.9,31.53691148]
[1641906313708,0.00113685,3128.0,3127.9,35.82242354]
[1641906314110,0.00113685,3128.0,3127.9,31.74627322]
[1641906314910,0.00113685,3128.0,3127.9,37.42100912]
[1641906315711,0.00113685,3128.0,3127.9,37.70010912]
[1641906315911,0.00113685,3128.0,3127.9,37.73997354]
[1641906316111,0.00113685,3128.0,3127.9,36.13994633]
[1641906317463,0.00113685,3128.0,3127.9,37.73997354]
[1641906317666,3.685e-05,3128.0,3127.9,37.73997354]
[1641906317870,3.685e-05,3128.0,3127.9,42.77831208]
[1641906318067,2.4854307,3130.0,3128.0,6.8]
[1641906318269,3.9092,3130.7,3129.2,0.4793224]
[1641906318270,2.4854307,3130.6,3129.2,0.4793224]
[1641906318468,0.01023162,3129.8,3129.4,18.7]
[1641906318668,0.01023162,3129.8,3129.5,1.01578038]
[1641906318871,0.00966319,3129.7,3129.5,1.0]
[1641906319172,3.2843407,3130.6,3129.4,0.3]
[1641906319173,0.00909477,3129.6,3129.4,0.3]
[1641906319566,0.00852635,3129.5,3129.1,4.6078]
[1641906319865,0.81153314,3130.1,3129.1,4.6078]
[1641906319866,0.00795792,3129.4,3129.1,4.6078]
[1641906320068,0.00795792,3129.4,3129.1,0.3]
[1641906320428,0.0073895,3129.3,3129.0,4.0258]
[1641906320615,0.0073895,3129.3,3129.0,3.7258]
[1641906320817,3.09893303,3130.4,3129.0,3.7258]
[1641906320818,0.464,3130.3,3129.2,24.14185083]
[1641906321016,0.464,3130.3,3129.2,22.7]
[1641906321218,0.00966319,3129.7,3129.2,22.7]
[1641906321617,0.464,3130.3,3129.0,3.7258]
[1641906321618,0.00909477,3129.6,3129.3,4.07413414]
[1641906322020,0.464,3130.3,3129.3,4.37413414]
[1641906322021,0.00852635,3129.5,3129.3,4.37413414]
[1641906322518,0.00795792,3129.4,3129.3,0.3]
[1641906322920,0.00795792,3129.4,3129.2,20.44987163]
[1641906323117,0.00795792,3129.4,3129.3,7.0]
[1641906323319,0.464,3130.3,3129.3,7.0]
[1641906323718,0.01250531,3130.2,3129.2,20.44987163]
[1641906323919,0.01250531,3130.2,3129.3,4.07413414]
[1641906324157,0.464,3130.3,3129.3,4.07413414]
[1641906324158,0.01193689,3130.1,3129.3,4.07413414]
[1641906324567,0.01136846,3130.0,3129.3,4.07413414]
[1641906324756,0.01136846,3130.0,3129.2,1.74987163]
[1641906324957,0.764,3130.3,3129.2,1.74987163]
[1641906324958,0.01080004,3129.9,3129.2,1.74987163]
[1641906325357,0.01023162,3129.8,3129.1,0.3]
[1641906325557,0.01023162,3129.8,3129.1,4.07413414]
[1641906325756,0.47366319,3129.7,3129.1,4.07413414]
[1641906325958,0.464,3129.6,3129.1,4.07413414]
[1641906326159,0.47309477,3129.6,3129.1,4.07413414]
[1641906326357,0.00852635,3129.5,3129.0,3.7258]
[1641906326558,0.47252635,3129.5,3128.8,1.22184341]
[1641906326758,0.00795792,3129.4,3128.8,1.22184341]
[1641906327161,0.0073895,3129.3,3128.8,1.52184341]
[1641906327559,0.00682108,3129.2,3128.8,1.52184341]
[1641906327920,0.00625265,3129.1,3128.8,1.52184341]
[1641906328305,0.00568423,3129.0,3128.8,1.52184341]
[1641906328706,0.00511581,3128.9,3128.7,1.1582]
[1641906328907,0.00511581,3128.9,3128.7,5.23233414]
[1641906329108,0.00454738,3128.8,3128.7,4.07413414]
[1641906329508,0.00454738,3128.8,3128.2,2.38700393]
[1641906329509,0.46854738,3128.8,3128.2,2.38700393]
[1641906329716,0.46854738,3128.8,3128.3,3.9917]
[1641906329910,0.00397896,3128.7,3128.1,2.70275321]
[1641906330109,0.00397896,3128.7,3128.1,3.00275321]
[1641906330314,0.00341054,3128.6,3128.1,2.70275321]
[1641906330511,0.00341054,3128.6,3128.1,1.11141726]
[1641906330712,0.00284211,3128.5,3128.1,1.11141726]
[1641906331110,0.00227369,3128.4,3128.1,1.11141726]
[1641906331312,0.00227369,3128.4,3128.0,1.2351]
[1641906331658,0.00170526,3128.3,3128.0,1.2351]
[1641906331957,1.26347,3128.4,3127.8,5.32823595]
[1641906331958,0.00113684,3128.2,3127.8,5.32823595]
[1641906332157,0.00113684,3128.2,3127.8,1.89133595]
[1641906332360,0.00170526,3128.3,3127.8,1.89133595]
[1641906332757,0.00113684,3128.2,3127.8,0.3]
[1641906332956,0.00113684,3128.2,3127.7,0.3]
[1641906333158,0.00170526,3128.3,3127.6,6.96756675]
[1641906333358,0.00170526,3128.3,3127.8,0.00113685]
[1641906333557,0.00113684,3128.2,3127.7,0.00170528]
[1641906333760,0.80065684,3128.2,3127.7,0.00170528]
[1641906333960,0.464,3128.1,3127.7,0.00170528]
[1641906334159,0.464,3128.1,3127.6,0.0022737]
[1641906334361,1.59943,3128.0,3127.6,0.0022737]
[1641906334662,0.464,3127.9,3127.6,0.0022737]
[1641906335059,6.8,3127.8,3127.5,1.52960965]
[1641906335259,6.8,3127.8,3127.3,2.38700393]
[1641906335260,0.464,3127.7,3127.3,2.38700393]
[1641906335526,0.764,3127.7,3127.6,2.71743489]
[1641906335726,4.114,3127.7,3127.6,2.71743489]
[1641906336626,4.91367,3127.7,3127.4,2.71857174]
[1641906337024,4.91367,3127.7,3127.4,3.01857174]
[1641906337224,1.56367,3127.7,3127.4,0.30113685]
[1641906337627,0.764,3127.7,3127.4,0.30113685]
[1641906337825,0.764,3127.7,3127.5,2.71743489]
[1641906340161,0.764,3127.7,3127.6,0.00832667]
[1641906341466,0.464,3127.7,3127.6,0.00832667]
[1641906341664,0.00113684,3127.8,3127.6,2.29423124]
[1641906341867,0.00113684,3127.8,3127.6,5.00112757]
[1641906342065,0.00113684,3127.8,3127.7,6.66377333]
[1641906343106,0.00113684,3127.8,3127.7,10.06190641]
[1641906343309,0.00113684,3127.8,3127.7,29.79267139]
[1641906344309,0.464,3128.9,3127.8,6.6]
[1641906344508,0.464,3128.9,3128.5,0.3]
[1641906344709,0.00568424,3128.8,3128.5,0.3]
[1641906345012,0.464,3128.9,3127.9,23.12495727]
[1641906345013,0.00511582,3128.7,3127.9,23.12495727]
[1641906345210,0.00511582,3128.7,3127.9,23.42495727]
[1641906345411,0.0045474,3128.6,3127.9,23.42495727]
[1641906345612,0.0045474,3128.6,3128.4,1.37591143]
[1641906345810,0.00397897,3128.5,3128.4,1.67591143]
[1641906346663,0.00397897,3128.5,3128.4,4.39334632]
[1641906346864,0.00397897,3128.5,3128.4,6.79001163]
[1641906347268,0.00397897,3128.5,3128.4,23.80975546]
[1641906347673,0.00397897,3128.5,3128.4,26.49001163]
[1641906347865,0.00397897,3128.5,3128.4,26.52827484]
[1641906348070,0.00397897,3128.5,3128.4,26.49001163]
[1641906348265,0.00397897,3128.5,3128.4,7.79001163]
[1641906348570,0.00397897,3128.5,3128.4,11.86446273]
[1641906348967,0.00397897,3128.5,3128.4,7.09188599]
[1641906349668,0.00397897,3128.5,3128.4,3.01743489]
[1641906350272,0.00397897,3128.5,3128.4,4.22809977]
[1641906350511,0.00397897,3128.5,3128.4,6.6010666]
[1641906350712,0.00397897,3128.5,3128.4,6.3010666]
[1641906351312,0.00397897,3128.5,3128.4,3.92809977]
[1641906352611,0.00397897,3128.5,3128.4,22.62809977]
[1641906353816,0.00397897,3128.5,3128.4,29.0895548]
[1641906354563,0.00397897,3128.5,3128.4,26.70255087]
[1641906357661,0.00397897,3128.5,3128.4,27.70255087]
[1641906357936,7.897e-05,3128.5,3128.4,26.80021266]
[1641906358122,7.897e-05,3128.5,3128.4,30.44688456]
[1641906359122,7.897e-05,3128.5,3128.4,31.25234263]
[1641906359325,2.3965326,3130.5,3129.5,1.14672236]
[1641906359724,0.7988383,3130.3,3129.0,0.13819997]
[1641906359925,1.5979554,3130.1,3129.0,1.13819997]
[1641906360125,0.01080005,3130.4,3129.0,1.13819997]
[1641906360126,0.48638681,3130.2,3129.0,0.13819997]
[1641906360325,0.00852635,3130.0,3129.0,0.13819997]
[1641906360532,0.00909478,3130.1,3129.0,0.13819997]
[1641906360826,0.00852635,3130.0,3129.3,1.60329038]
[1641906361025,0.80758635,3130.0,3129.3,1.60329038]
[1641906361225,0.00795793,3129.9,3129.3,1.60329038]
[1641906361425,0.7990604,3129.6,3129.3,1.60329038]
[1641906361667,1.0990604,3129.6,3129.3,1.60329038]
[1641906361868,0.00568424,3129.5,3129.2,1.60329038]
[1641906362267,1.0990604,3129.6,3129.2,1.60329038]
[1641906362268,0.00511581,3129.4,3129.2,1.60329038]
[1641906362571,0.00454739,3129.3,3129.2,1.60329038]
[1641906362769,0.00454739,3129.3,3129.2,4.88358385]
[1641906363173,0.00454739,3129.3,3129.2,21.98029347]
[1641906363370,0.00454739,3129.3,3129.2,28.77217946]
[1641906363971,0.00454739,3129.3,3129.2,24.69772836]
[1641906364772,0.00454739,3129.3,3129.2,28.77217946]
[1641906365428,0.00454739,3129.3,3129.2,31.1763621]
[1641906365621,0.00454739,3129.3,3129.2,31.4763621]
[1641906367124,0.00454739,3129.3,3129.2,29.07217946]
[1641906370264,0.00454739,3129.3,3129.2,29.08050613]
[1641906371567,0.00454739,3129.3,3129.2,32.28708689]
[1641906372568,0.00454739,3129.3,3129.2,30.98708689]
[1641906373527,0.00454739,3129.3,3129.2,27.78050613]
[1641906373924,0.00454739,3129.3,3129.2,29.08050613]
[1641906375824,0.798849,3130.4,3129.8,1.41654857]
[1641906376030,0.798849,3130.4,3129.5,2.45412116]
[1641906376224,0.00568423,3130.3,3129.5,3.45412116]
[1641906376425,0.00568423,3130.3,3129.3,3.35097558]
[1641906376677,0.00511581,3130.2,3129.3,3.35097558]
[1641906377072,0.80347369,3130.1,3129.9,1.59793054]
[1641906377473,0.00397896,3130.0,3129.9,1.59793054]
[1641906377669,0.30397896,3130.0,3129.9,1.59793054]
[1641906377869,0.30397896,3130.0,3129.7,1.59793054]
[1641906378271,0.00341054,3129.9,3129.7,1.59793054]
[1641906378672,0.3,3130.0,3129.6,1.59793054]
[1641906378673,0.80184432,3129.8,3129.6,1.59793054]
[1641906379169,4.05227369,3129.7,3129.6,1.59793054]
[1641906379370,5.7,3129.6,3129.5,1.60051086]
[1641906379569,0.464,3129.6,3129.5,1.60051086]
[1641906379768,0.46570527,3129.6,3129.5,1.60051086]
[1641906379968,0.46570527,3129.6,3129.4,2.71743489]
[1641906380171,0.46570527,3129.6,3129.3,2.71743489]
[1641906380419,0.00113685,3129.5,3129.3,2.65343489]
[1641906380612,1.26423645,3129.5,3129.3,2.65343489]
[1641906380812,1.56423645,3129.5,3129.3,2.65343489]
[1641906381014,1.56423645,3129.5,3128.8,3.8572]
[1641906381412,1.56423645,3129.5,3128.9,0.00227369]
[1641906384169,0.46513685,3129.5,3129.1,1.21850743]
[1641906384764,0.00113685,3129.5,3129.2,2.24857011]
[1641906384966,0.00113685,3129.5,3129.3,18.7]
[1641906385165,0.00113685,3129.5,3129.4,5.74290983]
[1641906385564,0.00113685,3129.5,3129.4,24.44290983]
[1641906385765,0.00113685,3129.5,3129.4,4.0744511]
[1641906386369,0.00113685,3129.5,3129.2,3.516734]
[1641906386566,0.00113685,3129.5,3129.4,18.7]
[1641906386970,0.00113685,3129.5,3129.4,20.0]
[1641906387568,0.00113685,3129.5,3129.4,24.86734229]
[1641906388226,0.00113685,3129.5,3129.4,20.79416279]
[1641906388926,0.00113685,3129.5,3129.4,24.86734229]
[1641906389534,0.00113685,3129.5,3129.4,20.79416279]
[1641906390124,0.00113685,3129.5,3129.4,20.80248467]
[1641906390325,0.00113685,3129.5,3129.4,24.87566417]
[1641906390927,0.00113685,3129.5,3129.4,6.17566417]
[1641906391129,0.00113685,3129.5,3129.4,27.31509007]
[1641906392772,0.00113685,3129.5,3129.4,30.51095115]
[1641906392974,0.4792715,3130.8,3130.7,1.30533241]
[1641906393274,0.00682108,3130.7,3129.7,0.01608429]
[1641906393470,0.00682108,3130.7,3129.7,18.7]
[1641906393671,0.00625265,3130.6,3129.8,3.44680646]
[1641906393873,0.00625265,3130.6,3129.8,3.74680646]
[1641906394077,0.00568423,3130.5,3129.8,1.0]
[1641906394471,0.00511581,3130.4,3130.2,1.59410426]
[1641906394871,0.00454738,3130.3,3130.2,1.59410426]
[1641906396115,0.00454738,3130.3,3130.2,3.0962717]
[1641906396319,0.00454738,3130.3,3130.2,1.50216744]
[1641906396917,0.23381888,3130.8,3130.2,1.50216744]
[1641906397317,0.0022737,3130.7,3130.2,1.50216744]
[1641906397519,0.0022737,3130.7,3130.0,6.66728376]
[1641906397719,0.00170527,3130.6,3130.0,6.96728376]
[1641906397920,0.00170527,3130.6,3130.1,0.00113684]
[1641906398117,0.00113685,3130.5,3130.1,0.00113684]
[1641906398618,0.00170527,3130.6,3130.1,0.00113684]
[1641906399020,0.00170527,3130.6,3129.9,1.89410426]
[1641906399021,0.00113685,3130.5,3130.0,0.00170527]
[1641906399471,0.798869,3130.5,3130.0,0.00170527]
[1641906399670,0.798869,3130.5,3129.8,0.00284211]
[1641906399871,0.00170527,3130.6,3129.8,0.00284211]
[1641906400071,0.00170527,3130.6,3129.7,5.31202161]
[1641906400273,0.00397896,3130.5,3130.2,0.00832188]
[1641906400672,0.00341054,3130.4,3130.2,0.00832188]
[1641906401076,0.00284211,3130.3,3130.2,0.00832188]
[1641906402777,0.00284211,3130.3,3130.2,1.50956768]
[1641906403024,0.00284211,3130.3,3130.2,4.40956768]
[1641906403419,0.00284211,3130.3,3130.2,26.82474421]
[1641906403618,0.00284211,3130.3,3130.2,22.92474421]
[1641906403821,0.00284211,3130.3,3130.2,24.22474421]
[1641906404223,0.00284211,3130.3,3130.2,23.40794421]
[1641906404622,0.00284211,3130.3,3130.2,4.70794421]
[1641906405621,0.00284211,3130.3,3130.2,3.20669841]
[1641906405821,0.00284211,3130.3,3130.2,2.90669841]
[1641906406671,0.00284211,3130.3,3130.2,0.19152188]
[1641906407373,6.8,3130.2,3129.4,4.07246148]
[1641906407571,0.464,3130.1,3129.6,4.07246148]
[1641906407777,0.46570527,3130.1,3129.6,4.07246148]
[1641906407971,0.79905,3129.9,3129.6,4.07246148]
[1641906408272,0.464,3129.8,3129.6,4.07246148]
[1641906408477,0.464,3129.7,3129.5,1.50956648]
[1641906408673,0.464,3129.6,3129.5,1.50956648]
[1641906408872,0.46513684,3130.0,3129.5,1.50786121]
[1641906409072,0.00113684,3130.0,3129.5,1.50786121]
[1641906409272,0.00113684,3130.0,3129.6,0.00113685]
[1641906409476,0.00113684,3130.0,3129.6,2.71681274]
[1641906409971,0.00113684,3130.0,3129.7,1.0]
[1641906410173,0.00113684,3130.0,3129.7,1.3]
[1641906410820,0.00113684,3130.0,3129.8,2.71567589]
[1641906411019,0.00113684,3130.0,3129.8,3.01567589]
[1641906411821,0.00113684,3130.0,3129.8,1.87767589]
[1641906412322,0.00113684,3130.0,3129.6,0.00113685]
[1641906412521,0.00113684,3130.0,3129.6,19.70113685]
[1641906413225,0.00113684,3130.0,3129.6,18.70113685]
[1641906413422,0.00113684,3130.0,3129.6,0.00113685]
[1641906413623,0.00113684,3130.0,3129.7,4.07246148]
[1641906413824,0.00170527,3129.9,3129.7,4.07246148]
[1641906414281,0.00113685,3129.8,3129.7,4.07246148]
[1641906414484,0.00113685,3129.8,3129.5,5.51745954]
[1641906414688,0.00113685,3129.8,3129.5,5.81745954]
[1641906414689,0.00284212,3129.8,3129.5,5.81745954]
[1641906415080,0.00284212,3129.8,3129.5,1.74499806]
[1641906416881,0.00284212,3129.8,3129.2,5.07246148]
[1641906416882,0.00284212,3129.8,3129.2,5.37246148]
[1641906417288,0.00284212,3129.8,3129.3,0.00170527]
[1641906418524,0.00284212,3129.8,3129.3,1.09313447]
[1641906418924,0.00284212,3129.8,3129.4,0.00113685]
[1641906419224,0.23383212,3130.1,3129.5,4.1]
[1641906419424,0.18935212,3130.1,3129.4,0.00113685]
[1641906419623,0.18935212,3130.1,3129.6,0.00284212]
[1641906419829,0.18935212,3130.1,3129.4,0.00397897]
[1641906420030,0.98834212,3130.1,3129.4,0.00397897]
[1641906420427,0.79899,3130.1,3129.4,0.00397897]
[1641906421528,0.79897,3130.0,3129.4,0.00397897]
[1641906421774,1.26294,3130.2,3129.4,0.00397897]
[1641906422175,0.3,3130.1,3129.4,0.00397897]
[1641906423478,0.2506,3130.1,3129.4,0.00397897]
[1641906423682,0.23603,3130.1,3129.4,0.00397897]
[1641906424676,0.70003,3130.1,3129.4,0.00397897]
[1641906427322,0.70003,3130.1,3129.7,1.59410426]
[1641906427523,0.70003,3130.1,3129.8,0.04940041]
[1641906427722,0.70003,3130.1,3129.8,0.05110568]
[1641906427923,0.70003,3130.1,3129.9,0.00113685]
[1641906428320,0.70003,3130.1,3129.8,1.11613745]
[1641906428521,0.70003,3130.1,3129.8,1.11560019]
[1641906428721,0.70003,3130.1,3129.7,1.59410426]
[1641906428921,0.70003,3130.1,3129.5,1.59410426]
[1641906428922,0.79899,3130.0,3129.5,1.59410426]
[1641906429173,0.70003,3130.1,3129.5,1.89410426]
[1641906429373,0.70003,3130.1,3129.6,2.21394756]
[1641906429573,0.70003,3130.1,3129.6,0.00170527]
[1641906429774,0.70003,3130.1,3129.7,0.00113685]
[1641906429976,0.70003,3130.1,3129.7,0.87114154]
[1641906430179,0.70003,3130.1,3129.9,1.23729974]
[1641906430377,0.464,3130.1,3129.9,1.23729974]
[1641906430575,0.7989,3130.3,3129.9,1.53729974]
[1641906430777,0.464,3130.6,3129.9,1.53729974]
[1641906430976,0.464,3130.6,3130.4,1.36769827]
[1641906432078,0.464,3130.6,3130.5,2.71523296]
[1641906432476,0.46797896,3130.6,3130.5,2.71523296]
[1641906434925,0.46797896,3130.6,3129.9,2.76172018]
[1641906434926,0.46797896,3130.6,3130.0,2.71523296]
[1641906435125,0.46797896,3130.6,3130.3,1.39136982]
[1641906435328,0.00341054,3130.5,3130.3,1.39136982]
[1641906435724,1.0988,3130.7,3130.3,1.39136982]
[1641906435725,0.00284212,3130.4,3130.3,1.39136982]
[1641906437997,0.00284212,3130.4,3130.3,4.00513649]
[1641906438191,0.00284212,3130.4,3130.3,1.69136982]
[1641906438590,0.00284212,3130.4,3130.3,22.71425155]
[1641906438988,0.00284212,3130.4,3130.3,23.71425155]
[1641906439197,0.00284212,3130.4,3130.3,21.39136982]
[1641906439390,0.00284212,3130.4,3130.3,2.69136982]
[1641906439590,0.00284212,3130.4,3130.3,1.69136982]
[1641906439793,0.00284212,3130.4,3130.3,2.69136982]
[1641906439991,0.00284212,3130.4,3130.3,1.69136982]
[1641906440192,0.00284212,3130.4,3130.3,2.69136982]
[1641906440460,0.00284212,3130.4,3130.3,1.69136982]
[1641906440649,0.00284212,3130.4,3130.2,1.59410426]
[1641906441045,1.26281,3130.5,3130.2,1.59410426]
[1641906441046,4.20227369,3130.3,3130.2,1.59410426]
[1641906441245,0.00227369,3130.3,3130.2,1.59410426]
[1641906441544,0.00227369,3130.3,3129.9,0.15610426]
[1641906441744,0.00227369,3130.3,3130.0,1.12412072]
[1641906441945,0.00170527,3130.2,3130.0,1.12412072]
[1641906442346,0.00113685,3130.1,3130.0,1.12412072]
[1641906442746,0.00284212,3130.1,3130.0,1.12412072]
[1641906442947,0.00284212,3130.1,3130.0,1.06012072]
[1641906443151,0.00284212,3130.1,3130.0,1.36012072]
[1641906443346,0.00284212,3130.1,3130.0,0.3]
[1641906443548,0.00284212,3130.1,3129.9,0.45610426]
[1641906443748,0.00284212,3130.1,3129.9,0.15610426]
[1641906443947,0.00284212,3130.1,3129.8,3.9782]
[1641906444184,0.00284212,3130.1,3129.8,2.69115638]
[1641906444782,0.00284212,3130.1,3129.7,2.39229323]
[1641906444984,0.00284212,3130.1,3129.7,4.23650419]
[1641906445585,0.00284212,3130.1,3129.7,2.39229323]
[1641906445890,0.79894,3130.0,3129.7,2.39229323]
[1641906446088,0.79894,3130.0,3129.7,0.00113685]
[1641906447093,1.59792,3130.0,3129.7,0.00113685]
[1641906447286,0.79894,3130.0,3129.7,0.00113685]
[1641906448125,0.79894,3130.0,3129.7,2.39229323]
[1641906448526,0.79894,3130.0,3129.7,2.69229323]
[1641906448921,0.79894,3130.0,3129.8,2.39115638]
[1641906449121,0.00284212,3130.1,3129.8,2.69115638]
[1641906449323,0.00284212,3130.1,3129.9,1.2938766]
[1641906450223,0.00284212,3130.1,3129.8,2.69115638]
[1641906451028,0.00284212,3130.1,3129.9,4.31249328]
[1641906452377,0.00284212,3130.1,3130.0,1.59712309]
[1641906452978,0.46684212,3130.1,3129.9,4.31249328]
[1641906453180,9.38992264,3130.0,3129.9,4.31249328]
[1641906453479,10.15392264,3130.0,3129.9,4.31249328]
[1641906453684,6.4,3129.9,3129.5,2.71537019]
[1641906453877,1.2631301,3129.8,3129.5,2.71537019]
[1641906454077,1.5631301,3129.8,3129.5,2.71537019]
[1641906454478,2.56361604,3129.7,3129.3,1.59712309]
[1641906454679,0.464,3129.6,3129.3,1.59712309]
[1641906454877,0.464,3129.6,3129.4,0.00170527]
[1641906455079,1.26325,3129.6,3129.4,0.00170527]
[1641906455517,0.79923,3129.4,3129.1,1.59712309]
[1641906455719,0.464,3129.3,3129.2,0.00113684]
[1641906455919,0.764,3129.3,3129.2,0.00113684]
[1641906456119,1.56319,3129.3,3129.2,0.00113684]
[1641906456918,1.56319,3129.3,3129.2,1.5462501]
[1641906456919,0.3,3129.3,3129.2,1.5462501]
[1641906457118,0.3,3129.6,3129.2,1.5462501]
[1641906457520,0.464,3129.7,3129.2,1.5462501]
[1641906457720,0.464,3129.7,3129.3,1.59712309]
[1641906457920,0.80015685,3129.6,3129.3,1.59712309]
[1641906458320,1.10015685,3129.6,3129.3,1.59712309]
[1641906461277,1.10015685,3129.6,3129.3,1.53312309]
[1641906464823,0.30113685,3129.6,3129.3,1.53312309]
[1641906465024,0.00113685,3129.6,3129.3,1.53312309]
[1641906465423,0.00113685,3129.6,3129.2,6.16155949]
[1641906465623,0.00113685,3129.6,3129.2,2.39229322]
[1641906466025,1.59935685,3129.6,3129.2,2.39229322]
[1641906466223,1.59935685,3129.6,3129.2,0.00113684]
[1641906466693,2.69846685,3129.6,3129.2,0.00113684]
[1641906467478,0.79913,3129.3,3129.0,0.00227369]
[1641906467778,0.79913,3129.3,3129.0,2.39343007]
[1641906467979,1.09913,3129.3,3129.0,2.39343007]
[1641906468179,1.09913,3129.3,3129.1,0.00170527]
[1641906468379,2.69737,3129.3,3129.1,0.00170527]
[1641906468780,2.69737,3129.3,3129.0,0.00227369]
[1641906469780,2.69737,3129.3,3129.0,2.71820955]
[1641906470182,2.69737,3129.3,3129.1,0.00170527]
[1641906470925,2.69737,3129.3,3128.9,0.00284211]
[1641906471126,2.69737,3129.3,3129.1,1.59479776]
[1641906471526,2.69737,3129.3,3129.1,0.15579776]
[1641906471731,2.69737,3129.3,3129.2,2.71593586]
[1641906472328,2.69737,3129.3,3129.1,0.15579776]
[1641906472727,2.69737,3129.3,3129.1,0.09179776]
[1641906474381,2.69737,3129.3,3128.9,0.00284211]
[1641906477076,1.89824,3129.3,3128.9,0.00284211]
[1641906478924,1.89824,3129.3,3128.8,0.00341054]
[1641906479325,1.89824,3129.3,3128.8,2.7193464]
[1641906479824,1.89824,3129.3,3128.9,0.00284211]
[1641906480225,0.79912,3129.2,3128.9,0.00284211]
[1641906480625,0.3,3129.1,3128.9,0.00284211]
[1641906482474,0.3,3129.1,3128.8,2.71593586]
[1641906484078,1.59823,3129.2,3129.0,1.35956722]
[1641906484279,0.00113685,3129.6,3129.1,1.74474774]
[1641906484477,0.00113685,3129.6,3129.0,1.35956722]
[1641906484478,3.828,3130.3,3129.5,1.40359424]
[1641906484683,0.79891,3129.9,3129.3,1.0]
[1641906484879,0.80459423,3129.9,3129.3,1.3]
[1641906485079,0.80459423,3129.9,3129.6,2.71593586]
[1641906485529,0.80459423,3129.9,3129.6,3.01593586]
[1641906486128,0.80459423,3129.9,3129.6,0.3]
[1641906486331,0.80459423,3129.9,3129.4,2.71593586]
[1641906486332,0.3,3129.8,3129.4,2.71593586]
[1641906486730,0.00454738,3129.7,3129.3,4.37246148]
[1641906486929,0.79898,3129.6,3129.3,4.07246148]
[1641906487130,1.10295896,3129.6,3129.3,4.37246148]
[1641906487335,0.00341054,3129.5,3129.3,4.37246148]
[1641906487830,0.00284211,3129.4,3129.3,4.37246148]
[1641906488031,0.00284211,3129.4,3129.3,4.07246148]
[1641906489030,0.00284211,3129.4,3129.3,4.37246148]
[1641906489285,0.00284211,3129.4,3129.3,4.07246148]
[1641906490887,0.00284211,3129.4,3129.3,5.66007334]
[1641906491488,0.00284211,3129.4,3129.3,4.07246148]
[1641906492087,0.00284211,3129.4,3129.3,1.59496899]
[1641906492495,0.00284211,3129.4,3129.3,1.89496899]
[1641906492687,0.00284211,3129.4,3129.3,20.59496899]
[1641906493128,0.00284211,3129.4,3129.3,21.59496899]
[1641906493329,0.00284211,3129.4,3129.3,20.0]
[1641906494129,5.7677,3130.8,3129.3,20.0]
[1641906494130,2.5325113,3130.9,3129.4,7.89072244]
[1641906494434,0.9350113,3130.9,3130.7,0.74571976]
[1641906494629,0.9350113,3130.9,3130.7,19.44571976]
[1641906494828,0.9350113,3130.9,3130.7,19.74571976]
[1641906495033,0.9350113,3130.9,3130.8,5.0]
[1641906495431,0.94353765,3130.9,3130.8,5.0]
[1641906495631,0.94353765,3130.9,3130.8,6.58739906]
[1641906495833,0.94353765,3130.9,3130.8,25.28739906]
[1641906496431,0.94353765,3130.9,3130.8,23.7]
[1641906496689,0.94353765,3130.9,3130.8,30.15356007]
[1641906496878,0.94353765,3130.9,3130.8,7.45356007]
[1641906497077,0.94353765,3130.9,3130.8,6.45356007]
[1641906497278,0.94353765,3130.9,3130.8,4.07246148]
[1641906497980,3.7,3130.8,3130.5,1.59027894]
[1641906498182,0.79877,3130.7,3130.5,1.59027894]
[1641906498380,0.80615951,3130.7,3130.5,1.59027894]
[1641906498580,0.30682108,3130.6,3130.5,1.59027894]
[1641906498880,0.30682108,3130.6,3130.4,1.59051279]
[1641906499079,0.00682108,3130.6,3130.4,1.59051279]
[1641906499280,0.00625266,3130.5,3130.4,1.59051279]
[1641906499480,0.00625266,3130.5,3130.1,1.59051279]
[1641906499780,1.90339424,3130.4,3130.1,1.59051279]
[1641906500182,0.00511581,3130.3,3130.1,1.59051279]
[1641906500429,0.00511581,3130.3,3130.2,1.59051279]
[1641906500625,1.89771,3130.4,3130.2,1.59051279]
[1641906501325,1.89771,3130.4,3130.2,0.15251279]
[1641906501527,1.89771,3130.4,3130.0,2.68541842]
[1641906501728,0.79863,3130.8,3130.1,19.7]
[1641906501925,0.79863,3130.8,3130.1,22.10431098]
[1641906502128,0.00568424,3130.4,3130.1,22.10431098]
[1641906502327,0.00568424,3130.4,3130.1,27.20479451]
[1641906502527,0.3,3130.7,3130.1,27.14079451]
[1641906502528,0.00511581,3130.3,3130.1,27.14079451]
[1641906502829,0.3,3130.7,3130.2,5.98862526]
[1641906503134,0.00682108,3130.6,3130.4,1.00498091]
[1641906503327,0.00682108,3130.6,3130.5,2.27684624]
[1641906503529,0.3,3130.7,3130.5,0.3]
[1641906503930,0.3,3130.7,3130.4,2.38598226]
[1641906504210,1.89744,3130.7,3130.4,2.38598226]
[1641906504596,1.09869,3130.7,3130.3,2.38598226]
[1641906505400,1.09869,3130.7,3130.2,5.10104737]
[1641906505803,0.79873,3130.6,3130.2,5.10104737]
[1641906506000,1.59756,3130.5,3130.4,2.71506511]
[1641906506199,1.90381266,3130.5,3130.4,2.71506511]
[1641906506898,1.90381266,3130.5,3130.3,2.38598226]
[1641906506899,1.60381266,3130.5,3130.3,5.10104737]
[1641906507298,0.00568424,3130.4,3130.3,5.10104737]
[1641906507699,0.00568424,3130.4,3130.3,2.38598226]
[1641906508634,0.00568424,3130.4,3130.3,5.02027727]
[1641906509025,0.00568424,3130.4,3130.3,6.02027727]
[1641906509726,0.00568424,3130.4,3130.3,3.63429501]
[1641906509926,0.9350113,3130.9,3130.3,10.88165068]
[1641906510127,0.9350113,3130.9,3130.4,1.0]
[1641906510427,0.80087369,3130.8,3130.5,2.55098783]